[Event "Titled Tuesday Blitz July 11 Early 2023"]
[White "Fernandez Lopez, Ruben"]
[Black "Papasimakopoulos, Alexandros"]
[WhiteFideId "24518298"]
[BlackFideId "4244125"]
[WhiteElo "2476"]
[BlackElo "2731"]
[Result "0-1"]
[Round "3"]
[TimeControl "180+2"]
[Date "2023.07.11"]
[WhiteClock "0:01:23"]
[BlackClock "0:01:06"]
[Board "84"]

1. b3 {[%clk 0:03:00]}  e5 {[%clk 0:02:59]} 2. Bb2 {[%clk 0:03:01]}  d6 {[%clk 0:02:59]} 3. e3 {[%clk 0:03:01]}  g6 {[%clk 0:02:58]} 4. d4 {[%clk 0:03:02]}  Bg7 {[%clk 0:02:54]} 5. dxe5 {[%clk 0:03:02]}  Nd7 {[%clk 0:02:55]} 6. Nf3 {[%clk 0:03:01]}  Nxe5 {[%clk 0:02:54]} 7. Nxe5 {[%clk 0:03:01]}  Bxe5 {[%clk 0:02:55]} 8. Bxe5 {[%clk 0:03:01]}  dxe5 {[%clk 0:02:56]} 9. Qxd8+ {[%clk 0:03:02]}  Kxd8 {[%clk 0:02:57]} 10. Nc3 {[%clk 0:03:02]}  c6 {[%clk 0:02:50]} 11. O-O-O+ {[%clk 0:03:03]}  Ke7 {[%clk 0:02:50]} 12. Bc4 {[%clk 0:03:03]}  Nf6 {[%clk 0:02:45]} 13. a4 {[%clk 0:03:04]}  a5 {[%clk 0:02:42]} 14. f3 {[%clk 0:03:04]}  Be6 {[%clk 0:02:40]} 15. Bxe6 {[%clk 0:03:02]}  Kxe6 {[%clk 0:02:41]} 16. Rd2 {[%clk 0:03:01]}  Rhd8 {[%clk 0:02:40]} 17. Rhd1 {[%clk 0:03:01]}  Rxd2 {[%clk 0:02:41]} 18. Rxd2 {[%clk 0:03:02]}  h5 {[%clk 0:02:35]} 19. h4 {[%clk 0:02:59]}  Rg8 {[%clk 0:02:34]} 20. e4 {[%clk 0:02:48]}  g5 {[%clk 0:02:34]} 21. hxg5 {[%clk 0:02:48]}  Rxg5 {[%clk 0:02:35]} 22. Nd1 {[%clk 0:02:48]}  Rg8 {[%clk 0:01:57]} 23. Ne3 {[%clk 0:02:48]}  Rb8 {[%clk 0:01:58]} 24. Nf5 {[%clk 0:02:48]}  Ne8 {[%clk 0:01:57]} 25. Rd1 {[%clk 0:02:44]}  b5 {[%clk 0:01:56]} 26. axb5 {[%clk 0:02:43]}  cxb5 {[%clk 0:01:56]} 27. Rh1 {[%clk 0:02:44]}  Nf6 {[%clk 0:01:56]} 28. Ng7+ {[%clk 0:02:44]}  Ke7 {[%clk 0:01:55]} 29. Nxh5 {[%clk 0:02:45]}  a4 {[%clk 0:01:43]} 30. Nxf6 {[%clk 0:02:45]}  Kxf6 {[%clk 0:01:43]} 31. bxa4 {[%clk 0:02:38]}  bxa4 {[%clk 0:01:43]} 32. Rh6+ {[%clk 0:02:39]}  Kg5 {[%clk 0:01:43]} 33. Ra6 {[%clk 0:02:40]}  Kf4 {[%clk 0:01:38]} 34. Rxa4 {[%clk 0:02:39]}  f6 {[%clk 0:01:35]} 35. Ra6 {[%clk 0:02:38]}  Rf8 {[%clk 0:01:35]} 36. Ra7 {[%clk 0:02:38]}  Rg8 {[%clk 0:01:35]} 37. Rf7 {[%clk 0:02:38]}  Rg6 {[%clk 0:01:35]} 38. Kd1 {[%clk 0:02:21]}  Ke3 {[%clk 0:01:35]} 39. Rf8 {[%clk 0:01:50]}  Rxg2 {[%clk 0:01:33]} 40. Kc1 {[%clk 0:01:47]}  Rg6 {[%clk 0:01:32]} 41. c4 {[%clk 0:01:40]}  Kxf3 {[%clk 0:01:27]} 42. c5 {[%clk 0:01:41]}  Kxe4 {[%clk 0:01:28]} 43. c6 {[%clk 0:01:41]}  f5 {[%clk 0:01:29]} 44. Rc8 {[%clk 0:01:39]}  f4 {[%clk 0:01:22]} 45. Kd1 {[%clk 0:01:40]}  Ke3 {[%clk 0:01:17]} 46. c7 {[%clk 0:01:40]}  Rd6+ {[%clk 0:01:18]} 47. Ke1 {[%clk 0:01:38]}  Rc6 {[%clk 0:01:18]} 48. Kd1 {[%clk 0:01:39]}  e4 {[%clk 0:01:18]} 49. Ra8 {[%clk 0:01:23]}  Rxc7 {[%clk 0:01:16]} 50. Ra3+ {[%clk 0:01:24]}  Kf2 {[%clk 0:01:16]} 51. Ra4 {[%clk 0:01:24]}  Rd7+ {[%clk 0:01:07]} 52. Kc2 {[%clk 0:01:24]}  Kf3 {[%clk 0:01:07]} 53. Ra8 {[%clk 0:01:22]}  e3 {[%clk 0:01:07]} 54. Rh8 {[%clk 0:01:23]}  e2 {[%clk 0:01:06]} 55. Re8 {[%clk 0:01:23]}  Kf2 {[%clk 0:01:06]} 0-1


[Site "https://www.chess.com"]

[Event "Titled Tuesday Blitz July 11 Early 2023"]
[White "Gunina, Valentina"]
[Black "Kopczynski, Michal"]
[WhiteFideId "4167570"]
[BlackFideId "1124200"]
[WhiteElo "2730"]
[BlackElo "2474"]
[Result "1-0"]
[Round "3"]
[TimeControl "180+2"]
[Date "2023.07.11"]
[WhiteClock "0:01:03"]
[BlackClock "0:00:14"]
[Board "85"]

1. d4 {[%clk 0:02:54]}  Nf6 {[%clk 0:03:00]} 2. c4 {[%clk 0:02:54]}  g6 {[%clk 0:03:00]} 3. Nc3 {[%clk 0:02:54]}  Bg7 {[%clk 0:03:00]} 4. e4 {[%clk 0:02:54]}  d6 {[%clk 0:03:01]} 5. Nf3 {[%clk 0:02:55]}  O-O {[%clk 0:03:02]} 6. Be2 {[%clk 0:02:55]}  e5 {[%clk 0:03:02]} 7. Be3 {[%clk 0:02:55]}  Nc6 {[%clk 0:03:01]} 8. O-O {[%clk 0:02:52]}  Ng4 {[%clk 0:03:00]} 9. Bg5 {[%clk 0:02:52]}  f6 {[%clk 0:03:00]} 10. Bc1 {[%clk 0:02:52]}  f5 {[%clk 0:02:57]} 11. dxe5 {[%clk 0:02:51]}  Ngxe5 {[%clk 0:02:51]} 12. exf5 {[%clk 0:02:49]}  Bxf5 {[%clk 0:02:50]} 13. Qd5+ {[%clk 0:02:38]}  Kh8 {[%clk 0:02:47]} 14. Bg5 {[%clk 0:02:39]}  Qd7 {[%clk 0:02:40]} 15. Nxe5 {[%clk 0:02:31]}  Nxe5 {[%clk 0:02:39]} 16. Rae1 {[%clk 0:02:27]}  Be6 {[%clk 0:02:20]} 17. Qe4 {[%clk 0:02:26]}  Rae8 {[%clk 0:02:14]} 18. Qh4 {[%clk 0:02:20]}  Qc6 {[%clk 0:02:07]} 19. b3 {[%clk 0:02:09]}  Nxc4 {[%clk 0:01:59]} 20. Ne4 {[%clk 0:01:56]}  Ne5 {[%clk 0:01:18]} 21. Nf6 {[%clk 0:01:55]}  Bxf6 {[%clk 0:01:08]} 22. Bxf6+ {[%clk 0:01:55]}  Kg8 {[%clk 0:01:08]} 23. f4 {[%clk 0:01:56]}  Nd7 {[%clk 0:01:01]} 24. Bd4 {[%clk 0:01:55]}  Bd5 {[%clk 0:00:58]} 25. Bg4 {[%clk 0:01:45]}  Qc2 {[%clk 0:00:38]} 26. Qh3 {[%clk 0:01:35]}  Nc5 {[%clk 0:00:28]} 27. f5 {[%clk 0:01:17]}  Rxe1 {[%clk 0:00:21]} 28. Rxe1 {[%clk 0:01:17]}  Nd3 {[%clk 0:00:21]} 29. fxg6 {[%clk 0:01:06]}  hxg6 {[%clk 0:00:15]} 30. Qh8+ {[%clk 0:01:02]}  Kf7 {[%clk 0:00:14]} 31. Qf6+ {[%clk 0:01:02]}  Kg8 {[%clk 0:00:14]} 32. Qxg6# {[%clk 0:01:03]} 1-0


[Site "https://www.chess.com"]

[Event "Titled Tuesday Blitz July 11 Early 2023"]
[White "De La Villa Garcia, Jesus Maria"]
[Black "gueraumasague"]
[WhiteFideId "2200040"]
[WhiteElo "2698"]
[BlackElo "2467"]
[Result "1-0"]
[Round "3"]
[TimeControl "180+2"]
[Date "2023.07.11"]
[WhiteClock "0:00:27"]
[BlackClock "0:00:01"]
[Board "90"]

1. e4 {[%clk 0:02:54]}  g6 {[%clk 0:03:00]} 2. d4 {[%clk 0:02:52]}  Bg7 {[%clk 0:03:00]} 3. Nc3 {[%clk 0:02:43]}  c6 {[%clk 0:03:00]} 4. Nf3 {[%clk 0:02:42]}  d5 {[%clk 0:03:01]} 5. h4 {[%clk 0:02:36]}  Bg4 {[%clk 0:03:00]} 6. Be2 {[%clk 0:02:32]}  dxe4 {[%clk 0:02:57]} 7. Nxe4 {[%clk 0:02:31]}  Bxf3 {[%clk 0:02:48]} 8. Bxf3 {[%clk 0:02:32]}  Qxd4 {[%clk 0:02:48]} 9. Qe2 {[%clk 0:02:32]}  Nf6 {[%clk 0:02:06]} 10. Be3 {[%clk 0:02:15]}  Qxb2 {[%clk 0:02:03]} 11. O-O {[%clk 0:02:11]}  Nxe4 {[%clk 0:02:01]} 12. Bxe4 {[%clk 0:02:09]}  Qxa1 {[%clk 0:02:01]} 13. Rxa1 {[%clk 0:02:10]}  Bxa1 {[%clk 0:02:01]} 14. Qc4 {[%clk 0:01:50]}  Nd7 {[%clk 0:01:39]} 15. c3 {[%clk 0:01:45]}  Rd8 {[%clk 0:01:22]} 16. h5 {[%clk 0:01:18]}  Nf6 {[%clk 0:00:46]} 17. Bf3 {[%clk 0:01:18]}  gxh5 {[%clk 0:00:43]} 18. Bd4 {[%clk 0:01:17]}  Rg8 {[%clk 0:00:35]} 19. Qf1 {[%clk 0:01:09]}  Rxd4 {[%clk 0:00:31]} 20. cxd4 {[%clk 0:01:08]}  Bxd4 {[%clk 0:00:32]} 21. Qb1 {[%clk 0:01:04]}  Bb6 {[%clk 0:00:30]} 22. Qf5 {[%clk 0:01:04]}  Kd8 {[%clk 0:00:27]} 23. Qe5 {[%clk 0:00:59]}  Bc7 {[%clk 0:00:20]} 24. Qd4+ {[%clk 0:00:58]}  Kc8 {[%clk 0:00:18]} 25. Qxa7 {[%clk 0:00:59]}  Rg5 {[%clk 0:00:18]} 26. Qa8+ {[%clk 0:00:51]}  Bb8 {[%clk 0:00:17]} 27. Qa3 {[%clk 0:00:52]}  Rb5 {[%clk 0:00:17]} 28. g3 {[%clk 0:00:49]}  Bd6 {[%clk 0:00:17]} 29. Qd3 {[%clk 0:00:41]}  Kc7 {[%clk 0:00:10]} 30. Qc4 {[%clk 0:00:38]}  h4 {[%clk 0:00:06]} 31. Qxh4 {[%clk 0:00:33]}  Rf5 {[%clk 0:00:06]} 32. Kg2 {[%clk 0:00:33]}  Kd7 {[%clk 0:00:02]} 33. Qc4 {[%clk 0:00:29]}  Nd5 {[%clk 0:00:02]} 34. Bg4 {[%clk 0:00:29]}  e6 {[%clk 0:00:02]} 35. Bxf5 {[%clk 0:00:30]}  exf5 {[%clk 0:00:03]} 36. Qd3 {[%clk 0:00:27]}  Ke6 {[%clk 0:00:03]} 37. Qe2+ {[%clk 0:00:27]}  Kf6 {[%clk 0:00:02]} 38. Qb2+ {[%clk 0:00:27]}  Kg6 {[%clk 0:00:02]} 39. Qxb7 {[%clk 0:00:27]}  Ne7 {[%clk 0:00:01]} 40. Qd7 {[%clk 0:00:28]}  Bc5 {[%clk 0:00:01]} 41. a4 {[%clk 0:00:28]}  f4 {[%clk 0:00:01]} 42. gxf4 {[%clk 0:00:27]}  h5 {[%clk 0:00:02]} 43. a5 {[%clk 0:00:27]}  Nd5 {[%clk 0:00:01]} 44. Qxc6+ {[%clk 0:00:27]}  Nf6 {[%clk 0:00:01]} 45. Qxc5 {[%clk 0:00:27]} 1-0


[Site "https://www.chess.com"]

[Event "Titled Tuesday Blitz July 11 Early 2023"]
[White "djokovic74"]
[Black "Devaev, Alexander"]
[BlackFideId "4169395"]
[WhiteElo "2697"]
[BlackElo "2465"]
[Result "1-0"]
[Round "3"]
[TimeControl "180+2"]
[Date "2023.07.11"]
[WhiteClock "0:01:44"]
[BlackClock "0:01:26"]
[Board "91"]

1. e4 {[%clk 0:03:00]}  c6 {[%clk 0:02:59]} 2. Nf3 {[%clk 0:03:01]}  d5 {[%clk 0:03:00]} 3. Nc3 {[%clk 0:03:02]}  Nf6 {[%clk 0:02:59]} 4. e5 {[%clk 0:03:02]}  Ne4 {[%clk 0:02:59]} 5. Nxe4 {[%clk 0:03:02]}  dxe4 {[%clk 0:02:59]} 6. Ng5 {[%clk 0:03:03]}  Qd5 {[%clk 0:03:00]} 7. Qe2 {[%clk 0:03:03]}  Qxe5 {[%clk 0:02:57]} 8. Nxe4 {[%clk 0:03:03]}  Bf5 {[%clk 0:02:28]} 9. d3 {[%clk 0:03:02]}  Bxe4 {[%clk 0:02:25]} 10. dxe4 {[%clk 0:02:59]}  e6 {[%clk 0:02:25]} 11. g3 {[%clk 0:02:55]}  Nd7 {[%clk 0:02:09]} 12. Bg2 {[%clk 0:02:54]}  Qc7 {[%clk 0:02:03]} 13. O-O {[%clk 0:02:53]}  Be7 {[%clk 0:02:01]} 14. f4 {[%clk 0:02:49]}  e5 {[%clk 0:02:00]} 15. Bd2 {[%clk 0:02:34]}  O-O {[%clk 0:01:59]} 16. Bc3 {[%clk 0:02:33]}  Rad8 {[%clk 0:01:52]} 17. Kh1 {[%clk 0:02:31]}  Bf6 {[%clk 0:01:48]} 18. Rae1 {[%clk 0:02:07]}  Rfe8 {[%clk 0:01:48]} 19. b3 {[%clk 0:01:48]}  exf4 {[%clk 0:01:39]} 20. Bxf6 {[%clk 0:01:47]}  f3 {[%clk 0:01:36]} 21. Bxd8 {[%clk 0:01:44]}  fxe2 {[%clk 0:01:36]} 22. Bxc7 {[%clk 0:01:44]}  exf1=Q+ {[%clk 0:01:26]} 23. Rxf1 {[%clk 0:01:44]} 1-0


[Site "https://www.chess.com"]

[Event "Titled Tuesday Blitz July 11 Early 2023"]
[White "Kukreja Sankalp"]
[Black "Bykhovsky, Anatoly"]
[WhiteFideId "45027676"]
[BlackFideId "2806991"]
[WhiteElo "2461"]
[BlackElo "2691"]
[Result "0-1"]
[Round "3"]
[TimeControl "180+2"]
[Date "2023.07.11"]
[WhiteClock "0:00:02"]
[BlackClock "0:01:32"]
[Board "93"]

1. e4 {[%clk 0:02:20]}  c5 {[%clk 0:02:58]} 2. Nf3 {[%clk 0:02:16]}  e6 {[%clk 0:02:58]} 3. d4 {[%clk 0:02:15]}  cxd4 {[%clk 0:02:58]} 4. Nxd4 {[%clk 0:02:16]}  a6 {[%clk 0:02:59]} 5. Bd3 {[%clk 0:02:15]}  Bc5 {[%clk 0:02:58]} 6. Nb3 {[%clk 0:02:15]}  Ba7 {[%clk 0:02:59]} 7. O-O {[%clk 0:02:13]}  Nc6 {[%clk 0:02:59]} 8. c4 {[%clk 0:02:13]}  Nf6 {[%clk 0:02:59]} 9. Nc3 {[%clk 0:02:13]}  O-O {[%clk 0:02:59]} 10. Re1 {[%clk 0:02:12]}  d6 {[%clk 0:02:58]} 11. Qe2 {[%clk 0:02:10]}  e5 {[%clk 0:02:54]} 12. h3 {[%clk 0:02:08]}  Be6 {[%clk 0:02:52]} 13. Be3 {[%clk 0:02:08]}  Bxe3 {[%clk 0:02:50]} 14. Qxe3 {[%clk 0:02:09]}  Rc8 {[%clk 0:02:50]} 15. Nd5 {[%clk 0:02:02]}  Bxd5 {[%clk 0:02:47]} 16. exd5 {[%clk 0:02:03]}  Nb4 {[%clk 0:02:46]} 17. Rad1 {[%clk 0:01:50]}  Nxa2 {[%clk 0:02:38]} 18. Qd2 {[%clk 0:01:39]}  Qb6 {[%clk 0:02:30]} 19. Re3 {[%clk 0:01:17]}  Nb4 {[%clk 0:02:17]} 20. Rg3 {[%clk 0:01:05]}  g6 {[%clk 0:02:12]} 21. Bf1 {[%clk 0:00:54]}  Ne4 {[%clk 0:02:08]} 22. Qe3 {[%clk 0:00:45]}  Qxe3 {[%clk 0:02:08]} 23. Rxe3 {[%clk 0:00:46]}  Nc5 {[%clk 0:02:08]} 24. Nxc5 {[%clk 0:00:37]}  Rxc5 {[%clk 0:02:09]} 25. Rb3 {[%clk 0:00:35]}  a5 {[%clk 0:02:09]} 26. Ra1 {[%clk 0:00:34]}  b6 {[%clk 0:02:06]} 27. Rc3 {[%clk 0:00:25]}  Rfc8 {[%clk 0:01:51]} 28. b3 {[%clk 0:00:22]}  Rxd5 {[%clk 0:01:48]} 29. Rcc1 {[%clk 0:00:17]}  Rd2 {[%clk 0:01:44]} 30. Rd1 {[%clk 0:00:17]}  Rxd1 {[%clk 0:01:44]} 31. Rxd1 {[%clk 0:00:18]}  Rd8 {[%clk 0:01:44]} 32. g3 {[%clk 0:00:18]}  Kf8 {[%clk 0:01:44]} 33. Bg2 {[%clk 0:00:18]}  Ke7 {[%clk 0:01:45]} 34. g4 {[%clk 0:00:17]}  f5 {[%clk 0:01:43]} 35. Kf1 {[%clk 0:00:16]}  Nc2 {[%clk 0:01:41]} 36. Ke2 {[%clk 0:00:15]}  Nd4+ {[%clk 0:01:41]} 37. Ke3 {[%clk 0:00:15]}  f4+ {[%clk 0:01:41]} 38. Ke4 {[%clk 0:00:13]}  Nxb3 {[%clk 0:01:41]} 39. Kd5 {[%clk 0:00:12]}  Nd4 {[%clk 0:01:38]} 40. Rb1 {[%clk 0:00:11]}  Rb8 {[%clk 0:01:38]} 41. Be4 {[%clk 0:00:10]}  a4 {[%clk 0:01:37]} 42. Ra1 {[%clk 0:00:08]}  Ra8 {[%clk 0:01:36]} 43. c5 {[%clk 0:00:05]}  Ra5 {[%clk 0:01:34]} 44. Kc4 {[%clk 0:00:04]}  Rxc5+ {[%clk 0:01:34]} 45. Kb4 {[%clk 0:00:04]}  b5 {[%clk 0:01:34]} 46. Bd3 {[%clk 0:00:02]}  Kd7 {[%clk 0:01:32]} 0-1


[Site "https://www.chess.com"]

[Event "Titled Tuesday Blitz July 11 Early 2023"]
[White "Lavrik, Dmitry"]
[Black "Mmukka"]
[WhiteFideId "24113190"]
[WhiteElo "2673"]
[BlackElo "2460"]
[Result "1-0"]
[Round "3"]
[TimeControl "180+2"]
[Date "2023.07.11"]
[WhiteClock "0:00:39"]
[BlackClock "0:00:00"]
[Board "94"]

1. Nf3 {[%clk 0:03:00]}  Nf6 {[%clk 0:02:59]} 2. g3 {[%clk 0:03:01]}  g6 {[%clk 0:02:59]} 3. Bg2 {[%clk 0:03:02]}  Bg7 {[%clk 0:02:59]} 4. O-O {[%clk 0:03:03]}  O-O {[%clk 0:03:00]} 5. c4 {[%clk 0:03:03]}  d6 {[%clk 0:03:00]} 6. Nc3 {[%clk 0:03:02]}  e5 {[%clk 0:02:58]} 7. d3 {[%clk 0:03:00]}  Nc6 {[%clk 0:02:55]} 8. Rb1 {[%clk 0:03:00]}  a5 {[%clk 0:02:55]} 9. a3 {[%clk 0:02:59]}  Re8 {[%clk 0:02:55]} 10. Bg5 {[%clk 0:02:56]}  h6 {[%clk 0:02:50]} 11. Bxf6 {[%clk 0:02:55]}  Bxf6 {[%clk 0:02:50]} 12. b4 {[%clk 0:02:56]}  axb4 {[%clk 0:02:49]} 13. axb4 {[%clk 0:02:57]}  Bg7 {[%clk 0:02:48]} 14. b5 {[%clk 0:02:55]}  Nd4 {[%clk 0:02:46]} 15. Nd2 {[%clk 0:02:53]}  Ra3 {[%clk 0:02:22]} 16. Nd5 {[%clk 0:02:23]}  Be6 {[%clk 0:01:46]} 17. e3 {[%clk 0:02:18]}  Nf5 {[%clk 0:01:45]} 18. Qc2 {[%clk 0:02:16]}  h5 {[%clk 0:01:33]} 19. Ra1 {[%clk 0:02:07]}  Rxa1 {[%clk 0:01:32]} 20. Rxa1 {[%clk 0:02:08]}  c6 {[%clk 0:01:20]} 21. bxc6 {[%clk 0:02:03]}  bxc6 {[%clk 0:01:20]} 22. Nb4 {[%clk 0:02:03]}  c5 {[%clk 0:01:20]} 23. Nd5 {[%clk 0:02:02]}  Ne7 {[%clk 0:01:17]} 24. Ra6 {[%clk 0:01:37]}  Bxd5 {[%clk 0:01:02]} 25. cxd5 {[%clk 0:01:36]}  f5 {[%clk 0:00:59]} 26. Nc4 {[%clk 0:01:29]}  Nc8 {[%clk 0:00:59]} 27. e4 {[%clk 0:01:26]}  f4 {[%clk 0:00:57]} 28. Bh3 {[%clk 0:01:25]}  fxg3 {[%clk 0:00:55]} 29. hxg3 {[%clk 0:01:19]}  Bf8 {[%clk 0:00:33]} 30. Qa4 {[%clk 0:01:11]}  Qe7 {[%clk 0:00:20]} 31. Ra8 {[%clk 0:00:58]}  h4 {[%clk 0:00:10]} 32. Rxc8 {[%clk 0:00:52]}  Rxc8 {[%clk 0:00:10]} 33. Bxc8 {[%clk 0:00:53]}  hxg3 {[%clk 0:00:11]} 34. fxg3 {[%clk 0:00:53]}  Qg5 {[%clk 0:00:11]} 35. Kf2 {[%clk 0:00:43]}  Qf6+ {[%clk 0:00:10]} 36. Kg2 {[%clk 0:00:42]}  Qd8 {[%clk 0:00:06]} 37. Be6+ {[%clk 0:00:41]}  Kh8 {[%clk 0:00:06]} 38. Qd7 {[%clk 0:00:42]}  Qf6 {[%clk 0:00:05]} 39. Qf7 {[%clk 0:00:41]}  Qxf7 {[%clk 0:00:04]} 40. Bxf7 {[%clk 0:00:42]}  Kg7 {[%clk 0:00:05]} 41. Be8 {[%clk 0:00:42]}  Kf6 {[%clk 0:00:06]} 42. Kf3 {[%clk 0:00:42]}  g5 {[%clk 0:00:05]} 43. Kg4 {[%clk 0:00:42]}  Be7 {[%clk 0:00:05]} 44. Kh5 {[%clk 0:00:42]}  Bf8 {[%clk 0:00:06]} 45. Ne3 {[%clk 0:00:42]}  Be7 {[%clk 0:00:05]} 46. Nf5 {[%clk 0:00:39]}  Bf8 {[%clk 0:00:00]} 47. Bb5 {[%clk 0:00:39]} 1-0


[Site "https://www.chess.com"]

[Event "Titled Tuesday Blitz July 11 Early 2023"]
[White "Zacurdajev, Dmitry"]
[Black "Iskusnyh, Sergei"]
[WhiteFideId "4196309"]
[BlackFideId "4120027"]
[WhiteElo "2446"]
[BlackElo "2621"]
[Result "1-0"]
[Round "3"]
[TimeControl "180+2"]
[Date "2023.07.11"]
[WhiteClock "0:00:02"]
[BlackClock "0:00:00"]
[Board "98"]

1. d4 {[%clk 0:03:00]}  d5 {[%clk 0:02:57]} 2. c4 {[%clk 0:03:00]}  c6 {[%clk 0:02:56]} 3. Nc3 {[%clk 0:03:00]}  Nf6 {[%clk 0:02:56]} 4. Nf3 {[%clk 0:02:54]}  e6 {[%clk 0:02:54]} 5. Bg5 {[%clk 0:01:49]}  Nbd7 {[%clk 0:02:52]} 6. e3 {[%clk 0:01:45]}  Be7 {[%clk 0:02:51]} 7. Qc2 {[%clk 0:01:42]}  h6 {[%clk 0:02:51]} 8. Bh4 {[%clk 0:01:40]}  O-O {[%clk 0:02:47]} 9. Rd1 {[%clk 0:01:39]}  a6 {[%clk 0:02:33]} 10. c5 {[%clk 0:01:35]}  b5 {[%clk 0:02:32]} 11. Bd3 {[%clk 0:01:29]}  e5 {[%clk 0:02:14]} 12. dxe5 {[%clk 0:01:08]}  Ne8 {[%clk 0:02:05]} 13. Bg3 {[%clk 0:00:41]}  Nxc5 {[%clk 0:02:04]} 14. Bh7+ {[%clk 0:00:34]}  Kh8 {[%clk 0:02:03]} 15. O-O {[%clk 0:00:30]}  Bb7 {[%clk 0:01:45]} 16. e4 {[%clk 0:00:21]}  Kxh7 {[%clk 0:01:15]} 17. exd5+ {[%clk 0:00:20]}  Kg8 {[%clk 0:01:15]} 18. dxc6 {[%clk 0:00:21]}  Qb6 {[%clk 0:01:06]} 19. cxb7 {[%clk 0:00:19]}  Qxb7 {[%clk 0:01:07]} 20. Nd5 {[%clk 0:00:18]}  Rc8 {[%clk 0:00:59]} 21. Rfe1 {[%clk 0:00:14]}  Bd8 {[%clk 0:00:59]} 22. Rc1 {[%clk 0:00:12]}  Qxd5 {[%clk 0:00:53]} 23. Red1 {[%clk 0:00:11]}  Qe6 {[%clk 0:00:48]} 24. b4 {[%clk 0:00:07]}  Bb6 {[%clk 0:00:47]} 25. bxc5 {[%clk 0:00:07]}  Rxc5 {[%clk 0:00:47]} 26. Qe4 {[%clk 0:00:08]}  Rxc1 {[%clk 0:00:46]} 27. Rxc1 {[%clk 0:00:09]}  Nd6 {[%clk 0:00:38]} 28. Qc6 {[%clk 0:00:08]}  Nf5 {[%clk 0:00:38]} 29. Qxe6 {[%clk 0:00:07]}  fxe6 {[%clk 0:00:39]} 30. Rc6 {[%clk 0:00:07]}  Rd8 {[%clk 0:00:33]} 31. h3 {[%clk 0:00:06]}  Nxg3 {[%clk 0:00:32]} 32. Rxb6 {[%clk 0:00:06]}  Rd1+ {[%clk 0:00:32]} 33. Kh2 {[%clk 0:00:06]}  Nf1+ {[%clk 0:00:32]} 34. Kg1 {[%clk 0:00:06]}  Nd2+ {[%clk 0:00:22]} 35. Kh2 {[%clk 0:00:06]}  Nxf3+ {[%clk 0:00:22]} 36. gxf3 {[%clk 0:00:07]}  Kf7 {[%clk 0:00:22]} 37. Rxa6 {[%clk 0:00:07]}  Re1 {[%clk 0:00:22]} 38. f4 {[%clk 0:00:07]}  Re4 {[%clk 0:00:22]} 39. Kg3 {[%clk 0:00:07]}  Rb4 {[%clk 0:00:21]} 40. f3 {[%clk 0:00:08]}  Rb1 {[%clk 0:00:20]} 41. a3 {[%clk 0:00:08]}  Rb3 {[%clk 0:00:19]} 42. Rb6 {[%clk 0:00:08]}  Ke7 {[%clk 0:00:14]} 43. Kg4 {[%clk 0:00:09]}  Kf7 {[%clk 0:00:14]} 44. h4 {[%clk 0:00:07]}  Rb1 {[%clk 0:00:11]} 45. Rb7+ {[%clk 0:00:06]}  Kf8 {[%clk 0:00:09]} 46. f5 {[%clk 0:00:04]}  exf5+ {[%clk 0:00:07]} 47. Kxf5 {[%clk 0:00:05]}  Rb3 {[%clk 0:00:05]} 48. Ke6 {[%clk 0:00:03]}  Kg8 {[%clk 0:00:04]} 49. f4 {[%clk 0:00:03]}  Rf3 {[%clk 0:00:03]} 50. f5 {[%clk 0:00:03]}  Rc3 {[%clk 0:00:02]} 51. f6 {[%clk 0:00:03]}  gxf6 {[%clk 0:00:02]} 52. exf6 {[%clk 0:00:04]}  Re3+ {[%clk 0:00:01]} 53. Kf5 {[%clk 0:00:04]}  Rf3+ {[%clk 0:00:01]} 54. Kg6 {[%clk 0:00:05]}  Rg3+ {[%clk 0:00:02]} 55. Kxh6 {[%clk 0:00:05]}  Kf8 {[%clk 0:00:01]} 56. Rxb5 {[%clk 0:00:04]}  Rxa3 {[%clk 0:00:00]} 57. Rb7 {[%clk 0:00:02]} 1-0


[Site "https://www.chess.com"]

[Event "Titled Tuesday Blitz July 11 Early 2023"]
[White "Ezat, Mohamed"]
[Black "Khromkin, Andrey"]
[WhiteFideId "10600906"]
[BlackFideId "4154126"]
[WhiteElo "2614"]
[BlackElo "2442"]
[Result "1-0"]
[Round "3"]
[TimeControl "180+2"]
[Date "2023.07.11"]
[WhiteClock "0:00:22"]
[BlackClock "0:00:00"]
[Board "100"]

1. d4 {[%clk 0:03:00]}  d5 {[%clk 0:02:59]} 2. c4 {[%clk 0:02:50]}  dxc4 {[%clk 0:02:58]} 3. e3 {[%clk 0:02:49]}  e5 {[%clk 0:02:57]} 4. Bxc4 {[%clk 0:02:48]}  exd4 {[%clk 0:02:58]} 5. exd4 {[%clk 0:02:49]}  Bd6 {[%clk 0:02:57]} 6. Qb3 {[%clk 0:02:41]}  Qe7+ {[%clk 0:02:54]} 7. Be3 {[%clk 0:02:40]}  Nf6 {[%clk 0:02:54]} 8. Nc3 {[%clk 0:02:39]}  Nc6 {[%clk 0:02:45]} 9. Bb5 {[%clk 0:02:37]}  O-O {[%clk 0:02:44]} 10. Bxc6 {[%clk 0:02:37]}  bxc6 {[%clk 0:02:44]} 11. Nge2 {[%clk 0:02:36]}  Nd5 {[%clk 0:02:33]} 12. Nxd5 {[%clk 0:02:33]}  cxd5 {[%clk 0:02:33]} 13. O-O {[%clk 0:02:33]}  Ba6 {[%clk 0:01:56]} 14. Rfe1 {[%clk 0:02:18]}  Rab8 {[%clk 0:01:55]} 15. Qc2 {[%clk 0:02:15]}  Rb6 {[%clk 0:01:50]} 16. Nc3 {[%clk 0:02:05]}  Qh4 {[%clk 0:01:29]} 17. g3 {[%clk 0:01:49]}  Qh3 {[%clk 0:01:27]} 18. b3 {[%clk 0:01:34]}  Bb4 {[%clk 0:01:23]} 19. a3 {[%clk 0:01:22]}  Bxc3 {[%clk 0:00:33]} 20. Qxc3 {[%clk 0:01:21]}  Bc8 {[%clk 0:00:30]} 21. f3 {[%clk 0:01:15]}  Rf6 {[%clk 0:00:23]} 22. Rf1 {[%clk 0:01:10]}  Re8 {[%clk 0:00:14]} 23. Rae1 {[%clk 0:01:06]}  Ba6 {[%clk 0:00:11]} 24. Rf2 {[%clk 0:01:05]}  h5 {[%clk 0:00:10]} 25. Bd2 {[%clk 0:00:33]}  Rfe6 {[%clk 0:00:10]} 26. Re5 {[%clk 0:00:31]}  Rxe5 {[%clk 0:00:08]} 27. dxe5 {[%clk 0:00:30]}  Qf5 {[%clk 0:00:07]} 28. h4 {[%clk 0:00:29]}  Rxe5 {[%clk 0:00:05]} 29. Bf4 {[%clk 0:00:24]}  Re2 {[%clk 0:00:04]} 30. Rxe2 {[%clk 0:00:23]}  Bxe2 {[%clk 0:00:04]} 31. Kf2 {[%clk 0:00:23]}  Bd1 {[%clk 0:00:00]} 32. Qxc7 {[%clk 0:00:22]} 1-0


[Site "https://www.chess.com"]